Cogmind - Beta 14 @@@ ROGUE MODE // 2024.09.28 @ 12:38:21 Player: Minty Result: Destroyed by G-34 Mercenary with Small Laser Performance ------------- Evolutions (0) 0 Regions Visited (1) 200 Robots Destroyed (12) 60 Value Destroyed (271) 271 Prototype IDs (0) 0 Alien Tech Used (0) 0 Bonus (0) 0 TOTAL SCORE: 531 Bonus ------- None Cogmind --------- Core Integrity 0/250 Matter 140/300 Energy 96/100 System Corruption 0% Temperature Cool (6) Movement Core (250) Ox4 Location -10/Materials Parts ------- > --- POWER (1) -------- (None) > --- PROPULSION (2) --- (None) > --- UTILITY (2) ------ Medium Storage Unit Structural Scanner > --- WEAPON (2) ------- Mining Claw > --- INVENTORY (10) --- Light Treads Light Treads Compact Wheel Hacking Suite Assault Rifle Peak State ------------ > --- POWER ------------ Light Ion Engine > --- PROPULSION ------- Wheel Wheel > --- UTILITY ---------- Medium Storage Unit Structural Scanner > --- WEAPON ----------- Assault Rifle Assault Rifle > --- INVENTORY -------- Ion Engine Light Treads Light Treads Compact Wheel Compact Wheel Compact Wheel Hacking Suite Medium Laser Assault Rifle [Rating: 8] Favorites ----------- Power Light Ion Engine Engine Light Ion Engine Propulsion Wheel Leg Aluminum Leg Wheel Wheel Utility Structural Scanner Device Structural Scanner Storage Medium Storage Unit Weapon Assault Rifle Energy Gun Medium Laser Ballistic Gun Assault Rifle Slashing Weapon Mining Claw Build | -11 -10 ------- Run | Yrd Mat Slots Evolved . | . . Power . | . . Propulsion . | . . Utility . | . . Weapon . | . . Parts Attached 14 | . 14 Power 2 | . 2 Engine 2 | . 2 Core . | . . Reactor . | . . Propulsion 7 | . 7 Treads . | . . Leg . | . . Wheel 7 | . 7 Hover . | . . Flight . | . . Utility 2 | . 2 Device 1 | . 1 Storage 1 | . 1 Processor . | . . Hackware . | . . Protection . | . . Artifact . | . . Weapon 3 | . 3 Energy Gun 1 | . 1 Energy Cannon . | . . Ballistic Gun 1 | . 1 Ballistic Cannon . | . . Launcher . | . . Special Weapon . | . . Impact Weapon . | . . Slashing Weapon 1 | . 1 Piercing Weapon . | . . Special Melee Weapon . | . . Unidentified Prototypes . | . . Parts Lost 9 | . 9 Power 2 | . 2 Propulsion 4 | . 4 Utility . | . . Weapon 3 | . 3 Highest Loss Streak 7 | . 7 To Critical Strikes . | . . Average Slot Usage (%) 94 | . 94 Engine 13 | . 13 Wheel 25 | . 25 Device 13 | . 13 Storage 14 | . 14 Energy Gun 2 | . 2 Ballistic Gun 22 | . 22 Slashing Weapon 1 | . 1 Peak Build Rating 8 | . 8 Average Rating 7 | . 7 On Entrance 6 | 6 6 Naked Turns . | . . Heaviest Build 18 | 12 18 Greatest Support 32 | 20 32 Greatest Overweight (x) . | . . Average Overweight (x) . | . . Largest Inventory Capacity 10 | . 10 Average Capacity 9 | . 9 Most Carried 10 | . 10 Average Carried 8 | . 8 Final Capacity 10 | 8 10 Final Carried 6 | 6 5 Class Distribution -------------------- 100% | Mutant Dominant Class ---------------- Mutant | -10/Materials Resources | -11 -10 ----------- Run | Yrd Mat Matter Collected 372 | 200 172 Remotely . | . . Salvage Created 330 | . 330 Parts 26 | . 26 Haulers Intercepted . | . . Recyclers Shooed 1 | . 1 Parts Field Recycled . | . . Retrieved Matter . | . . Parts Self-Destructed . | . . Prevented . | . . Kills | -11 -10 ------- Run | Yrd Mat Combat Hostiles Destroyed 10 | . 10 Melee 1 | . 1 Guns 9 | . 9 Classes Destroyed 4 | . 4 Worker 1 | . 1 Operator 1 | . 1 Swarmer 4 | . 4 Grunt 6 | . 6 Best Kill Streak 4 | . 4 Combat Bots Only 3 | . 3 Max Kills in Single Turn 1 | . 1 Gunslinging . | . . Exploded . | . . Melee 1 | . 1 Uniques/NPCs Destroyed . | . . Combat | -11 -10 -------- Run | Yrd Mat Hostile Shots Fired 121 | . 121 Missed 27 | . 27 Damage Taken 990 | . 990 Core 256 | . 256 Absorbed by Shields . | . . Core Remaining (%) 100 | 100 . Volleys Fired 48 | . 48 Largest 2 | . 2 Hottest 70 | . 70 Shots Fired 94 | . 94 Gun 94 | . 94 Cannon . | . . Launcher . | . . Special . | . . Kinetic 79 | . 79 Thermal 15 | . 15 Explosive . | . . Electromagnetic . | . . Robot Hit Streak 5 | . 5 Robot Miss Streak 5 | . 5 Penetration Max . | . . Secondary Targets 3 | . 3 Max Gunslinging Chain 1 | . 1 Shots Hit Robots 50 | . 50 Core Hits 18 | . 18 Critical Kills . | . . Critical Parts Destroyed . | . . Critical Strikes . | . . Melee Attacks 15 | . 15 Impact . | . . Slashing 15 | . 15 Piercing . | . . Sneak Attacks 1 | . 1 Combat Hostiles . | . . Follow-up Attacks . | . . Damage Inflicted 758 | . 758 Guns 548 | . 548 Cannons . | . . Explosions . | . . Melee 210 | . 210 Ramming . | . . Kinetic 449 | . 449 Thermal 99 | . 99 Explosive . | . . Electromagnetic . | . . Impact . | . . Slashing 210 | . 210 Piercing . | . . Highest Corruption . | . . Average Corruption . | . . Corruption Purged . | . . Corruption Blocked . | . . Overload Shots . | . . Overflow Damage 4 | . 4 Projectiles . | . . Explosions . | . . Melee 4 | . 4 Knockbacks . | . . Impact . | . . Kinetic . | . . Secondary . | . . Self-Inflicted Damage . | . . Shots . | . . Rammed . | . . Targets Rammed . | . . Kicked . | . . Crushed . | . . Highest Temperature 147 | . 147 Average Temperature 64 | . 64 Received Heat Transfer 492 | . 492 Siege Activations . | . . Robots Corrupted . | . . Combat Hostiles . | . . Parts Fried . | . . Impact Corruptions . | . . Robots Melted . | . . Combat Hostiles . | . . Parts Melted 2 | . 2 Heat Transferred 296 | . 296 Parts Sabotaged . | . . Parts Stolen . | . . Parts Stripped . | . . Power Chain Reactions . | . . Alert | -11 -10 ------- Run | Yrd Mat Peak Influence 205 | . 205 Initial . | . . Average 64 | . 64 Maximum Alert Level 1 | . 1 Low Security (%) 98 | . 98 Level 1 1 | . 1 Level 2 . | . . Level 3 . | . . Level 4 . | . . Level 5 . | . . High Security . | . . Max Security . | . . Squads Dispatched 3 | . 3 Investigation 1 | . 1 Extermination . | . . Reinforcement 2 | . 2 Assault . | . . Garrison . | . . Intercept . | . . Searches Triggered . | . . Construction Impeded . | . . Haulers Reinforced . | . . Active Scanning Responses . | . . Cargo Convoy Interrupts . | . . Stealth | -11 -10 --------- Run | Yrd Mat Distress Signals 1 | . 1 Communications Jammed . | . . Distress Signals . | . . Times Spotted 14 | . 14 Peak Tracking Total 4 | . 4 Tactical Retreats 1 | . 1 Traps | -11 -10 ------- Run | Yrd Mat Traps Triggered 1 | . 1 Indirectly . | . . Trap Hack Attempts . | . . Triggered . | . . Disarmed . | . . Reprogrammed . | . . Reused . | . . Traps Extracted . | . . Installed . | . . Triggered . | . . Machines | -11 -10 ---------- Run | Yrd Mat Machines Disabled 1 | . 1 Max in Single Turn 1 | . 1 Machines Repaired . | . . Machines Dismantled . | . . Machines Sabotaged . | . . Overloaded Fab Kills . | . . Hacking | -11 -10 --------- Run | Yrd Mat Machines Accessed 2 | . 2 Terminals . | . . Fabricators . | . . Repair Stations . | . . Recycling Units 2 | . 2 Scanalyzers . | . . Garrison Access . | . . Total Hacks 4 | . 4 Successful 2 | . 2 Failed 2 | . 2 Catastrophic . | . . Database Lockouts . | . . Manual . | . . Terminals . | . . Fabricators . | . . Repair Stations . | . . Recycling Units 4 | . 4 Scanalyzers . | . . Garrison Access . | . . Terminal Hacks . | . . Fabricator Hacks . | . . Repair Station Hacks . | . . Recycling Unit Hacks 2 | . 2 Report Inventory 2 | . 2 Scanalyzer . | . . Garrison Access Hacks . | . . Unauthorized Hacks . | . . Terminals . | . . Fabricators . | . . Repair Stations . | . . Recycling Units . | . . Scanalyzers . | . . Garrison Access . | . . Data Cores Recovered . | . . Used . | . . Hacking Detections 1 | . 1 Full Trace Events . | . . Feedback Events . | . . Feedback Blocked . | . . Robot Schematics Acquired . | . . Robots Built . | . . Authchips . | . . Time . | . . Total Robot Build Rating . | . . Part Schematics Acquired . | . . Parts Built . | . . Authchips . | . . Time . | . . Total Part Build Rating . | . . Parts Repaired . | . . Time . | . . Parts Recycled . | . . Recycled Matter . | . . Retrieved Matter . | . . Retrieved Components . | . . Parts Scanalyzed . | . . Part Schematics Acquired . | . . Parts Damaged . | . . Bothacking | -11 -10 ------------ Run | Yrd Mat Used RIF Installer . | . . Robots Hacked . | . . Non-combat . | . . Combat . | . . Robot Hacks Applied . | . . Relay Couplers Released . | . . Fabnet Peak Effective % . | . . Robots Rewired . | . . Allies Hacked . | . . Hacks Repelled . | . . Allies | -11 -10 -------- Run | Yrd Mat Total Allies . | . . Largest Group . | . . Highest-Rated Group . | . . Highest-Rated Ally . | . . Total Orders . | . . Ally Attacks . | . . Total Damage . | . . Kills . | . . Allies Corrupted . | . . Allies Melted . | . . Intel | -11 -10 ------- Run | Yrd Mat Robot Analysis Total . | . . Derelict Logs Recovered . | . . Drone Launches . | . . Drone Recoveries . | . . Exploration | -11 -10 ------------- Run | Yrd Mat Turns Passed 475 | . 475 Spaces Moved 304 | 1 303 Core . | . . Treads . | . . Legs 7 | 1 6 Wheels 297 | . 297 Hover . | . . Flight . | . . Fastest Speed 80 | 120 80 Average Speed 85 | 120 85 Slowest Speed 120 | 120 120 Overloaded Moves . | . . Propulsion Burnouts . | . . Robots Hopped . | . . Cave-ins Triggered . | . . Exploration Rate (%) 25 | 2 48 Regions Visited 1 Branch Regions . Pre-discovered Areas . | . . Known Exits Taken . | . . Unknown Exits Taken 1 | 1 . Scrap Searched . | . . Spaces Dug . | . . Terrain Destroyed . | . . Melee . | . . Projectile . | . . AOE . | . . Terrain Rammed . | . . Walls Destroyed . | . . Machines Disabled . | . . Actions | -11 -10 --------- Run | Yrd Mat Total 398 | . 398 Wait 5 | . 5 Move 303 | . 303 Hop . | . . Pick Up 5 | . 5 Fast Attach 3 | . 3 Attach 6 | . 6 Detach 1 | . 1 Swap 5 | . 5 Drop 7 | . 7 Fire 48 | . 48 Melee 15 | . 15 Ram . | . . Kick . | . . Crush . | . . Escape Stasis . | . . Rewire . | . . Trap . | . . Miscellaneous . | . . Route ------- -11/Scrapyard -10/Materials (discovered 1 exit: [*Mat]) History --------- Turn | Location | Event 1 | -11/Scrapyard | Discovered new exit (range 0) 1 | -11/Scrapyard | Entered Materials 109 | -10/Materials | Discovered new exit (range 16) 311 | -10/Materials | Build established: Mutant 414 | -10/Materials | Core integrity fell below 50% 441 | -10/Materials | Core integrity fell below 20% 476 | -10/Materials | Destroyed by G-34 Mercenary with Small Laser Last Messages --------------- 00404_ G-34 Mercenary destroyed. 00405_ Wheel destroyed. 00407_ K-01 Serf collects debris. 00409_ W-16 Scout sends out distress signal. 00410_ Lgt. Ion Engine destroyed. 00410_ G-34 Mercenary destroyed. 00410_ K-01 Serf collects debris. 00423_ Med. Laser destroyed. 00434_ K-01 Serf collects debris. 00437_ Acquired 42 matter. 00438_ K-01 Serf collects debris. 00441_ G-34 Mercenary destroyed. 00441_ K-01 Serf collects debris. 00452_ Com. Wheel destroyed. 00452_ K-01 Serf collects debris. 00456_ Ion Engine destroyed. 00460_ K-01 Serf collects debris. 00461_ Sneak attack on K-01 Serf. 00461_ Destroyed Wheel. 00466_ Com. Wheel destroyed. Map ----- +----------------------------------------------------+ | ### """##?????????????????????????????????????? | | ### ## #"?????????????????????????????????? | | ######+##### #"?????????????????????????????????? | | + # ?????????????????????????????????? | | #### ##### #"?????????????????????????????????? | | #### ##### # ?????????????????????????????????? | | ####+##### ????????????????????????????????????? | | ### # ?#" ????????????????????????????? | | ### # ?#### ##??????????????????????????? | | ### # ##??????????????????????????? | | + + "Y" # ##??????????????????????????? | | ### """ # ### ????????????????????????? | | ##### # ### ????????????????????????? | | #########+## ???????????????????????? | | ???### ???????????????????????? | | ????## ???????????????????????? | | ????## """" ???????????????????????? | | ????## """" ##?????????????????????? | | ????## """" ######### ### ???????????????????? | | ????## #########+### ???????????????????? | | ????## # = =%* # ???????????????????? | | ????## == # [[= # ???????????????????? | | ????## == # =% # ???????????????????? | | ????## # """ """ # ???????????????????? | | ????## + """"""""" # ???????????????????? | | ????## # *""""@g # ???????????????????? | | ????## # [=%=* # ???????????????????? | | ????########### ######+###### ???????????????????? | | ????########### ######[###### ??###??????????????? | | ?????########## ######=##### ##??????????????? | | ##???## *% ???????????? | | # = ! T ?????????????? | | ####### ???????????? | | ??######+################### #####???????????? | | ????? ################+#######???????????? | | ???????????????????????????? ??????????????? | | ?????????????????????????????????????????????????? | | ?????????????????????????????????????????????????? | | ?????????????????????????????????????????????????? | | ?????????????????????????????????????????????????? | | ?????????????????????????????????????????????????? | | ?????????????????????????????????????????????????? | | | | | | | | | | | | | | | | | +----------------------------------------------------+ Best States ------------- Heat Dissipation 25 Energy Generation 10 Energy Capacity 250 Matter Stores 300 Matter Capacity 300 Sight Range 16 Terrain Scan Density 10 Evasion (%) 44 Item Schematics ----------------- None Robot Schematics ------------------ None Fabricated ------------ Nothing Alien Tech Used ----------------- None Achievements -------------- None Challenges ------------ None Game ------ Seed FissionLegRail Manual? 0 Play Time 00:04:58 Cumulative 950.8 hours Start 2024.09.28 @ 12:35:33 End 2024.09.28 @ 12:38:21 Sessions 1 Manual Loads 0 Difficulty Rogue Special Mode None Game No. 1162 Rogue 882 Adventurer 124 Explorer 156 Win Type - Total 41 Types 28/0/8/3/1/0/0/1/0 Lore% 83 Gallery% 90 Achievement% 78 Wizard Run 0 Options --------- Layout 0 ASCII 0 Keyboard 1 Movement Numpad Keybinds 0 Fullscreen 2 Font 18/X11 Map View 76x50 Zoom Use 0% Tactical HUD 1 Map Filters NONE Filters NONE Steam 1 RUN: 6a33e69e-7628-4131-b307-80f4865f31cd